Cogmind - Beta 10.1 @@@ ROGUE MODE // 2020.10.03 @ 20:49:51 Player: MTF Result: Destroyed by 99-TNT with 99-TNT's Nukerbomber Performance ------------- Evolutions (1) 500 Regions Visited (6) 1200 Robots Destroyed (111) 555 Value Destroyed (1775) 1775 Prototype IDs (29) 580 Alien Tech Used (0) 0 Bonus (-275) -275 TOTAL SCORE: 4335 Bonus ------- High Alert Combat Kills 95 Aligned with FarCom 300 Friendly Fire -670 Cogmind --------- Core Integrity 0/400 Matter 254/300 Energy 115/300 System Corruption 0% Temperature Cool (0) Movement Core (50) Location -8/Mines Parts ------- > --- POWER (1) -------- (None) > --- PROPULSION (3) --- Improved Treads Advanced Myomer Leg > --- UTILITY (3) ------ Medium Battery Gravity Neutralizing Apparatus > --- WEAPON (2) ------- (None) > --- INVENTORY (4) ---- Medium Storage Unit Medium Battery (200) Gravity Neutralizing Apparatus Hardened Medium Armor Plating Peak State ------------ > --- POWER ------------ (None) > --- PROPULSION ------- Light Treads Improved Treads Advanced Myomer Leg > --- UTILITY ---------- Medium Battery Gravity Neutralizing Apparatus Hardened Medium Armor Plating > --- WEAPON ----------- Mini Grenade Launcher Makeshift Axe > --- INVENTORY -------- Medium Battery Gravity Neutralizing Apparatus Hardened Medium Armor Plating [Rating: 28] Favorites ----------- Power Ion Engine Engine Ion Engine Power Core Light Nuclear Core Propulsion Light Treads Treads Light Treads Leg Aluminum Leg Utility Hardened Medium Armor Plating Device Tractor Beam Storage Large Storage Unit Protection Hardened Medium Armor Plating Weapon Makeshift Axe Energy Gun EM Pulse Gun Ballistic Gun Autogun Launcher Mini Grenade Launcher Slashing Weapon Makeshift Axe Build | -11 -10 -10 -9 -9 -9 -8 ------- Run | Scr Mat Min Mat Min Exi Min Slots Evolved 2 | . . . 2 . . . Power . | . . . . . . . Propulsion 1 | . . . 1 . . . Utility 1 | . . . 1 . . . Weapon . | . . . . . . . Parts Attached 65 | 1 22 2 22 . 13 5 Power 5 | . 1 1 3 . . . Engine 4 | . 1 1 2 . . . Core 1 | . . . 1 . . . Reactor . | . . . . . . . Propulsion 17 | . 3 . 10 . 3 1 Treads 13 | . 3 . 7 . 3 . Leg 4 | . . . 3 . . 1 Wheel . | . . . . . . . Hover . | . . . . . . . Flight . | . . . . . . . Utility 21 | 1 3 . 6 . 8 3 Device 5 | 1 . . . . 3 1 Storage 5 | . 3 . 1 . . 1 Processor . | . . . . . . . Hackware . | . . . . . . . Protection 11 | . . . 5 . 5 1 Artifact . | . . . . . . . Weapon 22 | . 15 1 3 . 2 1 Energy Gun 2 | . 2 . . . . . Energy Cannon . | . . . . . . . Ballistic Gun 6 | . 6 . . . . . Ballistic Cannon . | . . . . . . . Launcher 10 | . 7 . 1 . 1 1 Special Weapon . | . . . . . . . Impact Weapon . | . . . . . . . Slashing Weapon 4 | . . 1 2 . 1 . Piercing Weapon . | . . . . . . . Special Melee Weapon . | . . . . . . . Unidentified Prototypes 3 | . . . . . 2 1 Parts Lost 14 | . . . 5 . 5 4 Power 1 | . . . . . 1 . Propulsion 7 | . . . 3 . 3 1 Utility 4 | . . . 2 . 1 1 Weapon 2 | . . . . . . 2 Highest Loss Streak 4 | . . . 2 . 4 4 Average Slot Usage (%) 98 | . 99 99 99 100 95 88 Engine 8 | . 14 14 6 . . . Core 3 | . . . 4 11 7 . Treads 28 | . 24 28 26 33 32 27 Leg 2 | . 3 . 6 . . 5 Storage 20 | . 26 28 17 11 11 11 Protection 10 | . . . 15 22 21 11 Energy Gun 1 | . 6 . . . . . Ballistic Gun 7 | . 20 8 . . . . Launcher 5 | . 1 14 10 . . 5 Slashing Weapon 10 | . . 5 11 22 21 16 Naked Turns . | . . . . . . . Heaviest Build 68 | 13 59 57 68 34 34 14 Greatest Support 75 | 20 40 40 63 63 75 15 Greatest Overweight (x) 5 | . 2 1 5 . . . Average Overweight (x) . | . . 1 . . . . Largest Inventory Capacity 18 | 6 18 18 18 8 8 8 Average Capacity 13 | 6 16 18 14 8 8 5 Most Carried 18 | 6 18 18 18 8 8 8 Average Carried 12 | 6 14 17 11 8 7 4 Final Capacity 18 | 6 18 18 8 8 8 4 Final Carried 18 | 6 18 14 8 8 8 4 Class Distribution -------------------- 100% | Mutant Dominant Class ---------------- Mutant | -10/Materials Mutant | -10/Mines Mutant | -9/Materials Mutant | -9/Mines Mutant | -9/Exiles Mutant | -8/Mines Resources | -11 -10 -10 -9 -9 -9 -8 ----------- Run | Scr Mat Min Mat Min Exi Min Matter Collected 1303 | 215 536 118 305 10 119 . Remotely 13 | 10 3 . . . . . Salvage Created 3031 | 67 705 587 1463 89 120 . Parts 181 | 2 65 38 71 2 3 . Haulers Intercepted 7 | . 2 . 5 . . . Recyclers Shooed 2 | . . . 2 . . . Parts Field Recycled . | . . . . . . . Retrieved Matter . | . . . . . . . Parts Self-Destructed . | . . . . . . . Prevented . | . . . . . . . Kills | -11 -10 -10 -9 -9 -9 -8 ------- Run | Scr Mat Min Mat Min Exi Min Combat Hostiles Destroyed 68 | . 23 11 28 . 6 . Melee 17 | . . . 15 . 2 . Guns 8 | . 8 . . . . . AOE 43 | . 15 11 13 . 4 . Classes Destroyed 13 | 1 6 1 4 . 1 . Worker 11 | . 3 4 4 . . . Builder 2 | . 1 . 1 . . . Tunneler 3 | . . 2 . 1 . . Hauler 7 | . 2 . 5 . . . Recycler 11 | 1 1 4 4 1 . . Mechanic 1 | . . . 1 . . . Operator 4 | . 2 . 2 . . . Watcher 1 | . . . 1 . . . Swarmer 29 | . 9 9 11 . . . Grunt 27 | . 14 2 11 . . . Duelist 1 | . . . 1 . . . Sentry 5 | . . . 5 . . . Assembled 7 | . . . . . 7 . Thug 1 | . . 1 . . . . Best Kill Streak 7 | 1 5 5 7 2 5 . Combat Bots Only 6 | . 3 3 6 . 5 . Max Kills in Single Turn 4 | 1 3 3 4 1 2 . Gunslinging . | . . . . . . . Exploded 3 | . 3 3 3 . 2 . Melee 1 | . . . 1 . 1 . Uniques/NPCs Destroyed 1 | . . . . . 1 . 8R-AWN (-9/Exiles) Combat | -11 -10 -10 -9 -9 -9 -8 -------- Run | Scr Mat Min Mat Min Exi Min Damage Taken 3339 | . 424 117 1119 . 1034 645 Core 524 | . 78 18 138 . 113 177 Absorbed by Shields . | . . . . . . . Core Remaining (%) 80 | 100 . 61 . . . . Volleys Fired 88 | 5 59 9 12 . 3 . Largest 2 | 2 2 1 1 . 1 . Hottest 60 | 60 60 30 30 . 30 . Shots Fired 141 | 10 107 9 12 . 3 . Gun 106 | 10 96 . . . . . Cannon . | . . . . . . . Launcher 35 | . 11 9 12 . 3 . Special . | . . . . . . . Kinetic 83 | 5 78 . . . . . Thermal . | . . . . . . . Explosive 35 | . 11 9 12 . 3 . Electromagnetic 23 | 5 18 . . . . . Robot Hit Streak 11 | 4 11 3 8 . . . Robot Miss Streak 6 | 2 6 . . . . . Penetration Max . | . . . . . . . Secondary Targets . | . . . . . . . Shots Hit Robots 196 | 6 58 17 67 5 43 . Core Hits 146 | 2 46 27 48 2 21 . Critical Hits 6 | . . 2 2 . 2 . Critical Kills 3 | . . 1 2 . . . Critical Parts Destroyed 1 | . . 1 . . . . Melee Attacks 155 | . . 18 79 5 53 . Impact . | . . . . . . . Slashing 155 | . . 18 79 5 53 . Piercing . | . . . . . . . Sneak Attacks 35 | . . 12 18 5 . . Combat Hostiles . | . . . . . . . Follow-up Attacks 5 | . . . . 1 4 . Damage Inflicted 11141 | 56 1786 2199 4738 461 1901 . Guns 764 | 56 708 . . . . . Cannons . | . . . . . . . Explosions 3365 | . 1054 756 1093 . 462 . Melee 6988 | . . 1443 3645 461 1439 . Ramming 24 | . 24 . . . . . Kinetic 578 | 6 572 . . . . . Thermal 74 | . 74 . . . . . Explosive 3291 | . 980 756 1093 . 462 . Electromagnetic 186 | 50 136 . . . . . Impact . | . . . . . . . Slashing 6988 | . . 1443 3645 461 1439 . Piercing . | . . . . . . . Highest Corruption . | . . . . . . . Average Corruption . | . . . . . . . Corruption Purged . | . . . . . . . Overload Shots . | . . . . . . . Overflow Damage 1233 | . 14 242 764 196 17 . Projectiles . | . . . . . . . Explosions 107 | . 14 32 44 . 17 . Melee 1126 | . . 210 720 196 . . Knockbacks . | . . . . . . . Impact . | . . . . . . . Kinetic . | . . . . . . . Secondary . | . . . . . . . Self-Inflicted Damage 230 | . 37 16 177 . . . Shots 8 | . 1 1 6 . . . Rammed 4 | . 4 . . . . . Targets Rammed 4 | . 4 . . . . . Kicked . | . . . . . . . Crushed . | . . . . . . . Highest Temperature 82 | 20 82 10 8 . 24 . Average Temperature 15 | 13 16 7 3 . 12 . Received Heat Transfer 513 | . 162 24 327 . . . Siege Activations . | . . . . . . . Robots Corrupted . | . . . . . . . Combat Hostiles . | . . . . . . . Parts Fried 1 | . 1 . . . . . Impact Corruptions . | . . . . . . . Robots Melted . | . . . . . . . Combat Hostiles . | . . . . . . . Parts Melted . | . . . . . . . Heat Transferred 150 | . 150 . . . . . Parts Sabotaged . | . . . . . . . Parts Stolen . | . . . . . . . Parts Stripped . | . . . . . . . Power Chain Reactions 1 | . 1 . . . . . Missiles Intercepted . | . . . . . . . Alert | -11 -10 -10 -9 -9 -9 -8 ------- Run | Scr Mat Min Mat Min Exi Min Peak Influence 613 | 5 374 383 613 205 . . Initial 195 | . 3 108 31 195 . . Average 228 | 2 132 251 332 203 . . Maximum Alert Level 2 | . 1 1 2 1 . . Low Security (%) 47 | 100 74 30 34 10 . 100 Level 1 37 | . 25 69 21 89 . . Level 2 14 | . . . 43 . . . Level 3 . | . . . . . . . Level 4 . | . . . . . . . Level 5 . | . . . . . . . High Security . | . . . . . . . Max Security . | . . . . . . . Squads Dispatched 8 | . 4 . 4 . . . Investigation 4 | . 3 . 1 . . . Extermination . | . . . . . . . Reinforcement 3 | . 1 . 2 . . . Assault 1 | . . . 1 . . . Garrison . | . . . . . . . Intercept . | . . . . . . . Construction Impeded 1 | . . . 1 . . . Haulers Reinforced . | . . . . . . . Stealth | -11 -10 -10 -9 -9 -9 -8 --------- Run | Scr Mat Min Mat Min Exi Min Distress Signals 3 | . 1 . 2 . . . Communications Jammed . | . . . . . . . Distress Signals . | . . . . . . . Times Spotted 95 | . 39 8 41 . 6 1 Peak Tracking Total 7 | . 4 3 5 . 7 1 Tactical Retreats 6 | . 4 . 2 . . . Traps | -11 -10 -10 -9 -9 -9 -8 ------- Run | Scr Mat Min Mat Min Exi Min Traps Triggered 1 | . 1 . . . . . Indirectly . | . . . . . . . Trap Hack Attempts . | . . . . . . . Triggered . | . . . . . . . Disarmed . | . . . . . . . Reprogrammed . | . . . . . . . Reused . | . . . . . . . Traps Extracted . | . . . . . . . Installed . | . . . . . . . Triggered . | . . . . . . . Machines | -11 -10 -10 -9 -9 -9 -8 ---------- Run | Scr Mat Min Mat Min Exi Min Machines Disabled 6 | . 1 1 2 . 2 . Max in Single Turn 1 | . 1 1 1 . 1 . Machines Sabotaged . | . . . . . . . Garrisons Compromised . | . . . . . . . Overloaded Fab Kills . | . . . . . . . Fab Network Shutdowns . | . . . . . . . Hacking | -11 -10 -10 -9 -9 -9 -8 --------- Run | Scr Mat Min Mat Min Exi Min Machines Accessed 20 | . 10 1 7 . 2 . Terminals 12 | . 7 . 5 . . . Fabricators . | . . . . . . . Repair Stations 1 | . 1 . . . . . Recycling Units 3 | . 2 . 1 . . . Scanalyzers 1 | . . . 1 . . . Garrison Access . | . . . . . . . Total Hacks 52 | . 27 1 22 . 2 . Successful 32 | . 16 1 13 . 2 . Failed 20 | . 11 . 9 . . . Catastrophic 2 | . . . 2 . . . Database Lockouts . | . . . . . . . Manual 30 | . 15 . 14 . 1 . Terminals 34 | . 17 . 17 . . . Fabricators . | . . . . . . . Repair Stations 6 | . 6 . . . . . Recycling Units 5 | . 4 . 1 . . . Scanalyzers 4 | . . . 4 . . . Garrison Access . | . . . . . . . Terminal Hacks 11 | . 3 1 5 . 2 . Record 2 | . . . 1 . 1 . Robot Analysis 2 | . 1 . 1 . . . Prototype ID Bank 1 | . 1 . . . . . Open Door 1 | . . 1 . . . . Branch Access Points 1 | . . . 1 . . . Zone Layout 3 | . 1 . 2 . . . EX-Prototype ID Bank 1 | . . . . . 1 . Fabricator Hacks . | . . . . . . . Repair Station Hacks 2 | . 2 . . . . . Scan Component 1 | . 1 . . . . . Repair 1 | . 1 . . . . . Recycling Unit Hacks 2 | . 2 . . . . . Process 1 | . 1 . . . . . Retrieve Matter 1 | . 1 . . . . . Scanalyzer 3 | . . . 3 . . . Insert Component 2 | . . . 2 . . . Analyze 1 | . . . 1 . . . Garrison Access Hacks . | . . . . . . . Unauthorized Hacks 14 | . 9 . 5 . . . Terminals 12 | . 8 . 4 . . . Track 11 | . 7 . 4 . . . Operators 1 | . 1 . . . . . Fabricators . | . . . . . . . Repair Stations . | . . . . . . . Recycling Units 2 | . 1 . 1 . . . Tunnel 2 | . 1 . 1 . . . Scanalyzers . | . . . . . . . Garrison Access . | . . . . . . . Data Cores Recovered 1 | . 1 . . . . . Used 1 | . 1 . . . . . Hacking Detections 15 | . 9 . 6 . . . Full Trace Events 1 | . 1 . . . . . Feedback Events . | . . . . . . . Feedback Blocked . | . . . . . . . Robot Schematics Acquired . | . . . . . . . Robots Built . | . . . . . . . Matter . | . . . . . . . Time . | . . . . . . . Total Robot Build Rating . | . . . . . . . Part Schematics Acquired 1 | . . . 1 . . . Parts Built . | . . . . . . . Matter . | . . . . . . . Time . | . . . . . . . Total Part Build Rating . | . . . . . . . Parts Repaired 1 | . 1 . . . . . Time 26 | . 26 . . . . . Parts Recycled . | . . . . . . . Recycled Matter 147 | . 147 . . . . . Retrieved Matter 147 | . 147 . . . . . Retrieved Components . | . . . . . . . Parts Scanalyzed 1 | . . . 1 . . . Part Schematics Acquired 1 | . . . 1 . . . Parts Damaged . | . . . . . . . Bothacking | -11 -10 -10 -9 -9 -9 -8 ------------ Run | Scr Mat Min Mat Min Exi Min Used RIF Installer . | . . . . . . . Robots Hacked . | . . . . . . . Non-combat . | . . . . . . . Combat . | . . . . . . . Robot Hacks Applied . | . . . . . . . Relay Couplers Released . | . . . . . . . Robots Rewired . | . . . . . . . Allies Hacked . | . . . . . . . Hacks Repelled . | . . . . . . . Allies | -11 -10 -10 -9 -9 -9 -8 -------- Run | Scr Mat Min Mat Min Exi Min Total Allies . | . . . . . . . Largest Group . | . . . . . . . Highest-Rated Group . | . . . . . . . Highest-Rated Ally . | . . . . . . . Total Orders . | . . . . . . . Ally Attacks . | . . . . . . . Total Damage . | . . . . . . . Kills . | . . . . . . . Allies Corrupted . | . . . . . . . Allies Melted . | . . . . . . . Intel | -11 -10 -10 -9 -9 -9 -8 ------- Run | Scr Mat Min Mat Min Exi Min Robot Analysis Total 2 | . 1 . 1 . . . Derelict Logs Recovered 2 | . . 1 . 1 . . Drone Launches . | . . . . . . . Drone Recoveries . | . . . . . . . Exploration | -11 -10 -10 -9 -9 -9 -8 ------------- Run | Scr Mat Min Mat Min Exi Min Turns Passed 4726 | 55 1282 828 1211 214 1117 19 Spaces Moved 2327 | 33 616 422 513 129 596 18 Core 18 | . . . . . . 18 Treads 2057 | . 514 422 396 129 596 . Legs 252 | 33 102 . 117 . . . Wheels . | . . . . . . . Hover . | . . . . . . . Flight . | . . . . . . . Fastest Speed 50 | 120 120 180 150 160 160 50 Average Speed 165 | 120 167 180 165 160 160 50 Slowest Speed 270 | 120 200 180 270 160 160 50 Overloaded Moves . | . . . . . . . Propulsion Burnouts . | . . . . . . . Robots Hopped . | . . . . . . . Cave-ins Triggered . | . . . . . . . Exploration Rate (%) 50 | 3 95 95 50 35 68 10 Regions Visited 6 Branch Regions 4 Pre-discovered Areas 4 | . 1 1 1 . 1 . Known Exits Taken 1 | . . . 1 . . . Unknown Exits Taken 5 | 1 1 1 . 1 1 . Scrap Searched 1 | . . 1 . . . . Spaces Dug 123 | . 45 51 27 . . . Terrain Destroyed 291 | . 104 92 75 . 20 . Melee . | . . . . . . . Projectile . | . . . . . . . AOE 291 | . 104 92 75 . 20 . Terrain Rammed . | . . . . . . . Walls Destroyed . | . . . . . . . Machines Disabled . | . . . . . . . Actions | -11 -10 -10 -9 -9 -9 -8 --------- Run | Scr Mat Min Mat Min Exi Min Total 2928 | 39 769 469 790 132 699 30 Wait 193 | 1 44 1 129 . 18 . Move 2321 | 32 615 421 512 128 595 18 Hop . | . . . . . . . Pick Up 47 | . 14 6 16 . 10 1 Fast Attach 16 | 1 5 1 5 . 4 . Attach 18 | . . . 10 . 4 4 Detach 5 | . 2 . 1 . 1 1 Swap 31 | . 17 1 7 . 5 1 Drop 55 | . 9 12 19 . 10 5 Fire 88 | 5 59 9 12 . 3 . Melee 150 | . . 18 79 4 49 . Ram . | . . . . . . . Kick . | . . . . . . . Crush 4 | . 4 . . . . . Escape Stasis . | . . . . . . . Rewire . | . . . . . . . Trap . | . . . . . . . Miscellaneous . | . . . . . . . Route ------- -11/Scrapyard -10/Materials (discovered 5 exits: *Mat x3 / *Min x2) -10/Mines (discovered 2 exits: *Mat x2) -9/Materials (discovered 3 exits: [*Mat] / *Min x2) -9/Mines (discovered 2 exits: [*Mat] / *Exi) -9/Exiles -8/Mines History --------- Turn | Location | Event 13 | -11/Scrapyard | Discovered new exit (range 3) 56 | -11/Scrapyard | Entered Materials 144 | -10/Materials | Discovered new exit (range 15) 318 | -10/Materials | Build established: Mutant 408 | -10/Materials | Discovered new exit (range 16) 408 | -10/Materials | Discovered new exit (range 16) 896 | -10/Materials | Repaired Lgt. Treads 971 | -10/Materials | Discovered new exit (range 15) 1302 | -10/Materials | Discovered new exit (range 14) 1338 | -10/Materials | Entered Mines 1439 | -10/Mines | Learned Materials emergency access door positions 1692 | -10/Mines | Learned location of Storage (-8) 1846 | -10/Mines | A weapon hastily lodged in a ceiling crevice suddenly fell to the ground 1882 | -10/Mines | Discovered new exit (range 5) 2119 | -10/Mines | Discovered new exit (range 7) 2135 | -10/Mines | Found the Drone Emporium 2145 | -10/Mines | Found Prototype Device 2166 | -10/Mines | Entered Materials 2166 | -9/Materials | Evolved 2 slots: Propulsion x1, Utility x1 2321 | -9/Materials | Identified exit to Mines 2334 | -9/Materials | Identified Bomb Drone Bay 3164 | -9/Materials | Discovered new exit (range 15) 3366 | -9/Materials | First assault squad dispatched 3377 | -9/Materials | Entered Mines 3385 | -9/Mines | Learned 2 Materials zone layouts 3394 | -9/Mines | Received a Rocket Launcher from a helpful Derelict 3398 | -9/Mines | Discovered new exit (range 6) 3580 | -9/Mines | Deemed a non-threat by the Exiles lab entrance 3581 | -9/Mines | Discovered new exit (range 5) 3591 | -9/Mines | Entered Exiles 3630 | -9/Exiles | Met 8R-AWN 3657 | -9/Exiles | Met EX-HEX 3716 | -9/Exiles | Met EX-DEC 3783 | -9/Exiles | Met EX-BIN 3809 | -9/Exiles | Learned location of Zion (-6) 3990 | -9/Exiles | Aligned with FarCom system 3991 | -9/Exiles | Given EX-Vault access code 4028 | -9/Exiles | Opened EX-Vault 4065 | -9/Exiles | Warned to stay clear of 0b10 Research branches 4325 | -9/Exiles | Attacked by the Exiles 4366 | -9/Exiles | Core integrity fell below 50% 4420 | -9/Exiles | Lost 4 parts (1p3n) 4442 | -9/Exiles | Destroyed 8R-AWN 4688 | -9/Exiles | Discovered new exit (range 15) 4708 | -9/Exiles | Entered Mines 4724 | -8/Mines | 99-TNT came to Exiles' defense 4727 | -8/Mines | Destroyed by 99-TNT with 99-TNT's Nukerbomber Last Messages --------------- 04590_ Dropped Weight Redist. System. 04591_ Extracted 6 energy. 04592_ Acquired Med. Battery. 04688_ EXIT=FOUND A strange signal echoes through the mines. LOCATION=UNKNOWN GOAL=ESCAPE 04710_ Dropped Hrd. Medium Armor Plating. 04712_ Dropped Lgt. Treads. 04713_ Identified Adv. Myomer Leg. 04714_ Dropped Melee Analysis Suite. 04714_ Dropped Mining Claw. 04716_ Dropped Med. Storage Unit. 04718_ Acquired Med. Storage Unit. 04724_ 99-TNT: "I came as fast as I could... Wait, it was you!" 04725_ Lgt. Treads destroyed. 04726_ The unstable cave ceiling collapses. 04727_ Hrd. Medium Armor Plating destroyed. 04727_ Mak. Axe destroyed. 04727_ Mni. Grenade Launcher destroyed. Map ----- +----------------------------------------------------+ | | | | | | | ??????????????????????????????????????? | | ??????????????###########?????????????? | | ??????????????# ????????????? | | ??????????????# """ """???????????? | | ??????????????# """ """???????????? | | ??????????????# / """ """ """ ??????? | | ??????????????#=!! #?????? | | ??????????????# #?????? | | ??????????????# #?????? | | ??????????????### ### #########???????? | | ????????????????# # #?????????????? | | ????????????????# ##????????????? | | ???????????????## #????????????? | | ???????????????# ###??????????? | | ????????????????# ###????????? | | ????????????????# ###??????? | | ????????????????## d ##?????? | | ?????????????????## #?????? | | ??????????????????### #?????? | | ????????????????????# #?????? | | ????????????????????# #?????? | | ????????????????????# #?????? | | ?????????????????????# @ #????? | | ?????????????????????# #?????? | | ?????????????????????# #?????? | | ?????????????????????# #?????? | | ?????????????????????# ####?????? | | ?????????????????????## ##????????? | | ??????????????????????# #?????????? | | ??????????????????????### #?????????? | | ????????????????????????# ###?????????? | | ????????????????????????? ????????????? | | ????????????????????????? ????????????? | | ????????????????????????? ????????????? | | ????????????????????????? ????????????? | | ????????????????????????? ????????????? | | ?????????????????????????#????????????? | | ??????????????????????????????????????? | | ??????????????????????????????????????? | | ??????????????????????????????????????? | | ??????????????????????????????????????? | | ??????????????????????????????????????? | | ??????????????????????????????????????? | | ??????????????????????????????????????? | | ??????????????????????????????????????? | | ??????????????????????????????????????? | | ??????????????????????????????????????? | +----------------------------------------------------+ Best States ------------- Heat Dissipation 28 Energy Generation 14 Energy Capacity 300 Matter Stores 300 Matter Capacity 300 Sight Range 16 Terrain Scan Density 10 Additional Mass Support 12 Armor Coverage 450 Evasion (%) 50 Recoil Reduction 3 Item Schematics ----------------- Mak. Axe | -9/Materials | Scanalyzed Robot Schematics ------------------ None Fabricated ------------ Nothing Alien Tech Used ----------------- None Achievements -------------- None Challenges ------------ None Game ------ Seed PoweredLightNegator Manual? 0 Play Time 00:52:35 Cumulative 886.0 hours Start 2020.10.03 @ 19:16:09 End 2020.10.03 @ 20:49:51 Sessions 1 Manual Loads 0 Difficulty Rogue Special Mode None Game No. 320 Rogue 320 Adventurer 0 Explorer 0 Win Type - Total 46 Types 10/13/8/3/1/1/8/1/1 Lore% 97 Gallery% 95 Achievement% 83 Wizard Run 0 Options --------- ASCII 0 Keyboard 0 Movement Numpad Keybinds 0 Fullscreen 2 Font 24/Smallcaps Map View 76x50 Tactical HUD 1 Map Filters NONE Filters NONE Steam 1 RUN: 29437b87-e78e-4c40-ae2f-3bc9ff70b347